bitfinex/quotes_SOLUSD_20240930
["timestamp","ask_amount","ask_price","bid_price","bid_amount"]
[1727727924238,7.37128691,156.29,156.24,28.6652]
[1727727924449,7.37128691,156.29,156.24,16.0005]
[1727727924450,0.97258691,156.29,156.24,16.0005]
[1727727924657,6.3992,156.27,156.23,6.4007]
[1727727924861,7.37228691,156.26,156.22,6.4011]
[1727727925068,7.37228691,156.26,156.18,16.4575434]
[1727727925069,0.97258691,156.26,156.18,16.4575434]
[1727727925357,6.4005,156.24,156.19,6.4023]
[1727727925562,0.97258691,156.23,156.19,6.4023]
[1727727925752,6.4005,156.24,156.19,6.4023]
[1727727925950,0.97258691,156.23,156.19,6.4023]
[1727727926146,6.3998,156.26,156.2,6.4017]
[1727727926545,23.776884,156.25,156.2,6.4017]
[1727727926953,6.3998,156.26,156.21,6.4013]
[1727727927260,24.74947091,156.25,156.21,6.4013]
[1727727927653,23.776884,156.25,156.21,6.4013]
[1727727929058,30.176884,156.25,156.2,22.4063]
[1727727931952,31.8588,156.32,156.22,16.0024]
[1727727932264,31.8588,156.32,156.21,17.69307634]
[1727727932265,15.8656,156.32,156.21,17.69307634]
[1727727932449,15.8656,156.32,156.29,6.3982]
[1727727932656,15.8656,156.32,156.28,6.3986]
[1727727933062,0.97258691,156.31,156.27,6.399]
[1727727933646,22.2628,156.32,156.27,6.399]
[1727727934292,24.74947091,156.31,156.26,15.9983]
[1727727934472,6.3983,156.29,156.26,15.9983]
[1727727934766,6.3983,156.29,156.24,6.4003]
[1727727934767,0.97258691,156.28,156.24,6.4003]
[1727727935346,6.3983,156.29,156.24,6.4003]
[1727727935546,0.97258691,156.3,156.23,16.0016]
[1727727935769,6.3981,156.3,156.26,6.3994]
[1727727935971,6.3981,156.3,156.24,6.4]
[1727727935972,23.776884,156.29,156.24,6.4]
[1727727936268,23.776884,156.29,156.23,16.0016]
[1727727936269,6.3981,156.3,156.26,6.3995]
[1727727936966,6.3976,156.31,156.26,6.3995]
[1727727937172,30.174484,156.31,156.27,6.3991]
[1727727937672,15.8656,156.32,156.22,32.0044]
[1727727937856,15.8656,156.32,156.29,6.3983]
[1727727938050,23.776884,156.32,156.29,6.3983]
[1727727938372,6.397,156.33,156.28,6.3986]
[1727727941861,6.3973,156.32,156.28,6.3986]
[1727727942568,0.97258691,156.31,156.27,22.3961]
[1727727943353,23.776884,156.31,156.27,22.3961]
[1727727944167,23.776884,156.31,156.27,15.9973]
[1727727944375,23.776884,156.31,156.28,6.3986]
[1727727944960,21.61033881,156.31,156.28,6.3986]
[1727727945273,6.3973,156.32,156.28,6.3986]
[1727727946357,6.3967,156.33,156.28,6.3986]
[1727727947156,23.776884,156.32,156.28,6.3986]
[1727727948376,23.776884,156.32,156.27,15.9973]
[1727727948565,23.776884,156.32,156.29,6.3982]
[1727727948975,34.8733,156.36,156.25,1.27969609]
[1727727948976,15.6933,156.36,156.25,1.27969609]
[1727727949180,23.776884,156.33,156.3,6.3978]
[1727727949478,15.6933,156.36,156.31,6.3975]
[1727727949479,6.396,156.35,156.31,6.3975]
[1727727949669,23.776884,156.34,156.31,6.3975]
[1727727949976,22.0891,156.36,156.31,22.3909]
[1727727951375,6.3958,156.36,156.31,15.9935]
[1727727951572,6.3951,156.37,156.31,15.9935]
[1727727952576,6.3951,156.37,156.33,6.3964]
[1727727952776,6.3951,156.37,156.32,6.3969]
[1727727953479,23.776884,156.38,156.31,15.9935]
[1727727954164,23.776884,156.38,156.32,6.3968]
[1727727954366,6.3952,156.37,156.32,6.3968]
[1727727955577,23.776884,156.38,156.28,21.27942448]
[1727727955881,23.776884,156.38,156.34,6.3962]
[1727727955882,30.171584,156.38,156.34,6.3962]
[1727727958879,32.012,156.43,156.33,15.9913]
[1727727959182,6.3943,156.39,156.35,6.3958]
[1727727959389,51.192,156.43,156.33,15.9913]
[1727727959563,6.3946,156.38,156.34,6.3961]
[1727727960389,0.97258691,156.37,156.33,15.9913]
[1727727960684,6.3954,156.37,156.33,22.3879]
[1727727960857,0.97258691,156.36,156.33,22.3879]
[1727727961259,6.3954,156.37,156.33,22.3879]
[1727727961755,23.776884,156.4,156.33,15.9913]
[1727727961959,22.67974933,156.43,156.34,1.27912273]
[1727727962166,15.9777,156.47,156.35,15.4752]
[1727727962381,15.9777,156.47,156.39,6.3942]
[1727727962587,6.3931,156.42,156.36,15.9882]
[1727727962757,0.97258691,156.41,156.36,15.9882]
[1727727963162,6.3931,156.42,156.37,6.3948]
[1727727963467,35.1577,156.47,156.37,6.3948]
[1727727963468,6.3935,156.41,156.37,6.3948]
[1727727963665,6.3931,156.42,156.37,6.3948]
[1727727963878,6.3931,156.42,156.38,6.3945]
[1727727964271,6.3927,156.43,156.38,6.3945]
[1727727965262,6.3933,156.42,156.37,6.3947]
[1727727966867,6.3933,156.42,156.38,6.3945]
[1727727967273,6.3926,156.43,156.37,1.27883659]
[1727727967468,23.776884,156.46,156.39,6.3939]
[1727727967781,6.3926,156.43,156.39,6.3939]
[1727727967985,0.97258691,156.42,156.39,6.3939]
[1727727968481,6.3926,156.43,156.39,6.3939]
[1727727972681,16.2466,156.48,156.3,21.1804]
[1727727972682,23.776884,156.41,156.3,21.1804]
[1727727972991,23.776884,156.41,156.33,6.3965]
[1727727972992,6.3953,156.37,156.33,6.3965]
[1727727974275,6.3947,156.38,156.34,6.3962]
[1727727974568,6.3939,156.4,156.36,6.3954]
[1727727974769,23.776884,156.42,156.38,6.3945]
[1727727974987,23.776884,156.42,156.37,6.3949]
[1727727975186,6.3935,156.41,156.37,6.3949]
[1727727975368,7.36608691,156.41,156.37,6.3949]
[1727727975968,6.3941,156.4,156.36,15.9884]
[1727727976172,0.97258691,156.39,156.36,15.9884]
[1727727976686,6.3941,156.4,156.36,15.9884]
[1727727976892,6.3941,156.4,156.36,22.3838]
[1727727977390,6.3935,156.41,156.37,6.395]
[1727727980767,6.3935,156.41,156.37,7.67394832]
[1727727981573,23.776884,156.42,156.37,1.27894832]
[1727727981798,30.169984,156.42,156.38,6.3946]
[1727727982594,15.1298,156.46,156.37,1.27894832]
[1727727982802,15.1298,156.46,156.37,21.8004]
[1727727983090,6.5141,156.49,156.41,15.9835]
[1727727983293,6.391,156.47,156.43,6.3925]
[1727727983474,6.3905,156.48,156.42,1.27850628]
[1727727983672,15.2031,156.5,156.42,1.27850628]
[1727727983871,21.5931,156.5,156.45,22.3703]
[1727727984798,6.39,156.5,156.46,6.3913]
[1727727984993,6.389,156.52,156.48,6.3905]
[1727727985290,6.389,156.52,156.45,15.9786]
[1727727985291,6.389,156.52,156.47,6.3909]
[1727727985870,6.3886,156.53,156.49,6.3899]
[1727727986087,15.5959,156.54,156.47,15.9767]
[1727727986292,6.3889,156.52,156.47,22.3676]
[1727727986979,0.97258691,156.51,156.44,37.7728]
[1727727987186,23.776884,156.53,156.45,1.27816121]
[1727727987385,15.5959,156.54,156.45,1.27816121]
[1727727987386,6.3894,156.51,156.47,6.3908]
[1727727987568,6.389,156.52,156.47,6.3908]
[1727727987768,6.389,156.52,156.48,6.3905]
[1727727987983,0.97258691,156.51,156.46,15.978]
[1727727988298,0.97258691,156.51,156.47,6.3909]
[1727727988797,6.389,156.52,156.47,6.3909]
[1727727992388,6.389,156.52,156.46,15.978]
[1727727992583,6.389,156.52,156.48,6.3905]
[1727727995003,6.389,156.52,156.47,6.3908]
[1727727995479,6.389,156.52,156.48,6.3905]
[1727728000787,6.3895,156.51,156.47,6.3909]
[1727728000984,7.36208691,156.51,156.47,6.3909]
[1727728001303,6.3903,156.49,156.44,6.392]
[1727728001507,6.3903,156.49,156.45,6.3916]
[1727728001814,6.3896,156.51,156.47,6.3909]
[1727728002005,15.5959,156.54,156.45,15.9789]
[1727728002006,6.3898,156.5,156.46,6.3913]
[1727728003088,0.97258691,156.49,156.46,6.3913]
[1727728003798,7.36288691,156.49,156.45,22.3706]
[1727728003999,0.97258691,156.48,156.45,22.3706]
[1727728004305,6.3903,156.49,156.45,22.3706]
[1727728004498,6.3906,156.48,156.45,15.9789]
[1727728005699,6.3906,156.48,156.44,6.3919]
[1727728006005,0.97258691,156.47,156.44,6.3919]
[1727728007187,6.3906,156.48,156.44,6.3919]
[1727728007910,23.776884,156.52,156.44,6.3919]
[1727728008084,6.3903,156.49,156.44,6.3919]
[1727728008287,6.3903,156.49,156.45,6.3917]
[1727728012398,7.36318691,156.48,156.44,22.3721]
[1727728012592,6.3906,156.48,156.44,22.3721]
[1727728014501,0.97258691,156.47,156.41,15.983]
[1727728014914,24.74947091,156.5,156.41,15.983]
[1727728015307,6.3914,156.46,156.42,6.3927]
[1727728016500,23.776884,156.5,156.42,6.3927]
[1727728016836,6.3911,156.47,156.43,6.3925]
[1727728017023,6.3907,156.48,156.44,6.3921]
[1727728017611,23.776884,156.5,156.44,1.27822078]
[1727728017925,6.3901,156.49,156.45,6.3917]
[1727728019302,0.97258691,156.48,156.45,6.3917]
[1727728019509,6.3901,156.49,156.45,6.3917]
[1727728020201,15.5959,156.54,156.46,1.27822272]
[1727728020714,6.389,156.52,156.48,6.3903]
[1727728021708,15.5959,156.54,156.47,15.977]
[1727728021905,6.3887,156.53,156.49,6.3901]
[1727728022706,6.3887,156.53,156.48,1.27802423]
[1727728022906,6.3887,156.53,156.48,7.66842423]
[1727728023825,15.5959,156.54,156.49,15.9752]
[1727728024006,15.5959,156.54,156.52,6.3889]
[1727728024342,6.3876,156.56,156.52,6.3889]
[1727728024940,15.8762,156.58,156.5,1.27777553]
[1727728025096,6.3877,156.55,156.51,6.3892]
[1727728026617,23.776884,156.57,156.52,6.3887]
[1727728026925,15.8762,156.58,156.53,6.3885]
[1727728027107,22.2627,156.58,156.54,6.388]
[1727728027825,15.8762,156.58,156.53,15.971]
[1727728028009,22.0871,156.63,156.56,6.3873]
[1727728028010,6.3859,156.6,156.56,6.3873]
[1727728028526,6.3859,156.6,156.55,6.3877]
[1727728029100,0.97258691,156.59,156.54,6.388]
[1727728030222,6.3862,156.59,156.54,6.388]
[1727728031005,0.97258691,156.58,156.54,6.388]
[1727728031231,6.3862,156.59,156.54,6.388]
[1727728031406,6.3865,156.58,156.54,6.388]
[1727728035414,6.3865,156.58,156.54,7.66545246]
[1727728036235,6.3861,156.59,156.55,6.3876]
[1727728040633,6.3865,156.58,156.54,6.388]
[1727728041634,0.97258691,156.6,156.53,15.971]
[1727728042439,23.776884,156.59,156.5,15.9739]
[1727728042636,6.3878,156.55,156.51,6.3893]
[1727728044525,6.3881,156.54,156.5,22.3635]
[1727728045444,23.776884,156.59,156.51,7.66695653]
[1727728045643,23.776884,156.59,156.51,6.3892]
[1727728045847,23.776884,156.57,156.51,6.3892]
[1727728046145,23.776884,156.59,156.51,6.3892]
[1727728046146,0.97258691,156.56,156.51,6.3892]
[1727728046727,23.776884,156.59,156.51,6.3892]
[1727728046921,6.3886,156.53,156.5,15.9739]
[1727728047141,6.388,156.55,156.5,23.64111543]
[1727728047346,23.776884,156.57,156.5,22.3633]
[1727728047647,6.3882,156.54,156.5,22.3633]
[1727728048821,23.776884,156.57,156.48,16.5315]
[1727728049147,23.776884,156.57,156.44,6.3649]
[1727728049148,6.3909,156.48,156.44,6.3649]
[1727728049332,6.3905,156.49,156.44,12.757]
[1727728051122,6.3905,156.49,156.45,6.3917]
[1727728051327,6.3898,156.5,156.45,6.3917]
[1727728051749,6.3898,156.5,156.45,7.66987881]
[1727728052258,6.3898,156.5,156.45,6.3917]
[1727728054961,0.97258691,156.49,156.45,6.3917]
[1727728055247,6.3902,156.49,156.45,6.3917]
[1727728057150,15.9767,156.55,156.44,6.3649]
[1727728057349,15.9767,156.55,156.48,6.3905]
[1727728057550,6.3888,156.53,156.48,6.3905]
[1727728057751,6.3888,156.53,156.48,7.66846574]
[1727728057966,6.3881,156.54,156.49,17.25276575]
[1727728058253,6.3878,156.55,156.51,6.389]
[1727728059655,6.3872,156.57,156.52,6.3888]
[1727728060435,6.3872,156.57,156.53,6.3884]
[1727728062563,6.3872,156.57,156.52,6.3886]
[1727728062939,6.3872,156.57,156.53,6.3885]
[1727728063856,6.3866,156.58,156.54,6.3878]
[1727728064056,6.3866,156.58,156.54,7.66537376]
[1727728064644,6.3866,156.58,156.54,6.3878]
[1727728065150,7.35948691,156.57,156.53,22.3593]
[1727728065467,6.3869,156.57,156.53,22.3593]
[1727728065663,24.74947091,156.62,156.53,15.9709]
[1727728065859,6.3866,156.58,156.54,6.3881]
[1727728070869,0.97258691,156.57,156.5,22.1942]
[1727728071069,0.97258691,156.57,156.5,6.2198]
[1727728071264,0.97258691,156.57,156.49,15.678]
[1727728071265,0.97258691,156.57,156.49,6.3899]
[1727728071461,6.3889,156.52,156.48,6.3904]
[1727728071765,0.97258691,156.56,156.47,15.977]
[1727728071952,6.3895,156.51,156.47,22.3679]
[1727728073571,7.36238691,156.5,156.46,6.3913]
[1727728073777,6.3898,156.5,156.46,6.3913]
[1727728075948,23.776884,156.53,156.47,6.3906]
[1727728076149,6.3895,156.51,156.47,6.3906]
[1727728076360,0.97258691,156.5,156.47,6.3906]
[1727728078168,0.97258691,156.5,156.46,22.3689]
[1727728079756,7.36238691,156.5,156.46,22.3689]
[1727728079956,6.3898,156.5,156.46,22.3689]
[1727728081273,6.3906,156.48,156.44,6.392]
[1727728082355,6.3906,156.48,156.44,14.05669971]
[1727728082555,6.3906,156.48,156.43,30.03963452]
[1727728082772,6.3906,156.48,156.44,6.3921]
[1727728082977,6.3902,156.49,156.45,6.3917]
[1727728085274,23.776884,156.5,156.45,15.9793]
[1727728085454,6.3902,156.49,156.45,22.371]
[1727728086178,7.36278691,156.49,156.45,22.371]
[1727728086365,6.3908,156.48,156.44,6.392]
[1727728087263,6.3903,156.49,156.45,6.3918]
[1727728088161,7.36288691,156.49,156.45,6.3918]
[1727728090196,6.3903,156.49,156.45,6.3918]
[1727728090590,0.97258691,156.48,156.45,6.3918]
[1727728093380,7.36318691,156.48,156.44,22.3722]
[1727728093585,0.97258691,156.47,156.44,22.3722]
[1727728093971,6.3906,156.48,156.44,22.3722]
[1727728094884,0.97258691,156.47,156.44,22.3722]
[1727728095483,6.3906,156.48,156.44,22.3722]
[1727728095878,0.97258691,156.47,156.44,22.3722]
[1727728097372,7.36358691,156.47,156.44,15.9803]
[1727728097573,7.36358691,156.47,156.43,6.3925]
[1727728097574,0.97258691,156.46,156.43,6.3925]
[1727728098372,6.391,156.47,156.43,6.3925]
[1727728099869,23.776884,156.5,156.4,31.9675]
[1727728100086,23.776884,156.5,156.44,6.3921]
[1727728100087,6.3907,156.48,156.44,6.3921]
[1727728100778,0.97258691,156.47,156.44,6.3921]
[1727728102577,6.3907,156.48,156.44,6.3921]
[1727728102969,23.776884,156.5,156.44,6.3921]
[1727728103184,6.391,156.47,156.44,6.3921]
[1727728103676,0.97258691,156.46,156.44,6.3921]
[1727728103992,0.97258691,156.46,156.43,22.3738]
[1727728104372,7.36398691,156.46,156.43,22.3738]
[1727728104678,0.97258691,156.45,156.43,22.3738]
[1727728105276,6.391,156.47,156.43,22.3738]
[1727728107597,0.97258691,156.46,156.43,22.3738]
[1727728109366,7.36438691,156.45,156.41,6.3931]
[1727728109588,0.97258691,156.44,156.41,6.3931]
[1727728110495,6.3915,156.46,156.42,6.393]
[1727728111369,6.3902,156.49,156.45,6.3915]
[1727728111567,6.39,156.5,156.46,6.3913]
[1727728111977,6.389,156.52,156.48,6.3903]
[1727728113088,6.389,156.52,156.46,15.9781]
[1727728113279,6.389,156.52,156.47,6.3908]
[1727728115581,6.389,156.52,156.47,7.66891038]
[1727728116301,31.858,156.55,156.47,7.66891038]
[1727728116302,15.888,156.55,156.47,1.27811038]
[1727728116474,6.3887,156.53,156.49,6.39]
[1727728117480,6.3887,156.53,156.48,6.3904]
[1727728117689,0.97258691,156.52,156.46,15.9781]
[1727728118199,6.3893,156.52,156.47,6.3908]
[1727728118789,6.3893,156.52,156.46,15.9781]
[1727728119098,6.3893,156.52,156.48,6.3905]
[1727728121098,0.97258691,156.51,156.48,6.3905]
[1727728121999,0.97258691,156.51,156.46,15.9781]
[1727728122308,6.3896,156.51,156.47,6.3909]
[1727728122506,0.97258691,156.5,156.47,6.3909]
[1727728124002,6.3896,156.51,156.47,6.3909]
[1727728124201,7.36258691,156.5,156.46,22.3694]
[1727728124387,7.36288691,156.49,156.45,6.3916]
[1727728124594,6.3903,156.49,156.45,6.3916]
[1727728124896,6.3899,156.5,156.46,6.3914]
[1727728125098,23.776884,156.52,156.45,6.3918]
[1727728125099,7.36298691,156.49,156.45,6.3918]
[1727728126200,6.3898,156.5,156.46,6.3913]
[1727728127283,6.389,156.52,156.44,17.90960348]
[1727728127478,6.3886,156.53,156.47,15.9771]
[1727728127699,0.97258691,156.52,156.49,6.39]
[1727728128491,0.97258691,156.52,156.47,15.9771]
[1727728128691,15.888,156.55,156.47,22.368]
[1727728128692,7.36198691,156.51,156.47,22.368]
[1727728128891,7.36228691,156.5,156.47,15.9771]
[1727728129105,6.3897,156.5,156.47,15.9771]
[1727728130106,6.3894,156.51,156.47,22.368]
[1727728130409,0.97258691,156.5,156.47,22.368]
[1727728131494,6.3894,156.51,156.47,22.368]
[1727728132685,15.888,156.55,156.47,15.9771]
[1727728132886,15.888,156.55,156.49,15.9749]
[1727728133087,0.97258691,156.54,156.49,15.9749]
[1727728133306,6.3886,156.53,156.49,22.365]
[1727728133885,0.97258691,156.52,156.49,22.365]
[1727728136124,7.36168691,156.52,156.48,6.3904]
[1727728136288,0.97258691,156.51,156.48,6.3904]
[1727728136481,6.3891,156.52,156.48,6.3904]
[1727728136700,15.888,156.55,156.48,6.3904]
[1727728137007,15.888,156.55,156.5,6.3897]
[1727728137008,6.3884,156.54,156.5,6.3897]
[1727728138208,22.276,156.55,156.51,6.3893]
[1727728139689,6.388,156.55,156.51,6.3893]
[1727728139883,6.3872,156.57,156.52,6.3886]
[1727728140108,7.35998691,156.56,156.5,27.28250348]
[1727728140292,7.35998691,156.56,156.51,6.3892]
[1727728140698,0.97258691,156.56,156.51,6.3892]
[1727728141004,6.3878,156.55,156.5,22.3638]
[1727728141215,0.97258691,156.54,156.5,22.3638]
[1727728141397,6.3898,156.5,156.45,22.37]
[1727728141709,0.97258691,156.54,156.45,22.37]
[1727728141710,6.3894,156.51,156.47,6.3909]
[1727728142007,23.776884,156.53,156.47,6.3909]
[1727728142008,7.36158691,156.52,156.47,6.3909]
[1727728142401,6.389,156.52,156.47,6.3909]
[1727728142916,0.97258691,156.51,156.48,6.3904]
[1727728143514,6.389,156.52,156.48,6.3904]
[1727728144016,23.776884,156.53,156.47,15.977]
[1727728144201,30.165684,156.53,156.48,6.3905]
[1727728145810,6.3878,156.55,156.5,6.3896]
[1727728146016,6.3878,156.55,156.5,7.66743535]
[1727728146693,6.3878,156.55,156.5,6.3896]
[1727728146902,6.3878,156.55,156.51,6.3893]
[1727728149719,22.5088,156.61,156.52,12.58608997]
[1727728149912,15.9635,156.61,156.52,12.58608997]
[1727728150098,6.3862,156.59,156.54,6.3878]
[1727728151525,0.97258691,156.58,156.54,6.3878]
[1727728152019,6.3865,156.58,156.54,6.3878]
[1727728153903,6.3854,156.61,156.57,6.3868]
[1727728154105,6.3849,156.62,156.57,6.3868]
[1727728154312,6.3844,156.63,156.59,6.3859]
[1727728155131,6.3844,156.63,156.58,7.66350924]
[1727728155818,6.3844,156.63,156.58,6.3863]
[1727728156024,0.97258691,156.62,156.58,6.3863]
[1727728156619,6.3849,156.62,156.58,6.3863]
[1727728157216,0.97258691,156.61,156.55,6.4792]
[1727728157514,6.3865,156.58,156.54,22.3577]
[1727728158310,6.387,156.57,156.53,6.3884]
[1727728158715,6.3866,156.58,156.53,6.3884]
[1727728161425,6.3871,156.57,156.53,6.3884]
[1727728161729,0.97258691,156.57,156.52,6.3889]
[1727728162226,23.776884,156.6,156.52,6.3889]
[1727728162411,6.3869,156.57,156.52,6.3889]
[1727728164333,6.3869,156.57,156.53,6.3883]
[1727728173035,23.776884,156.6,156.51,6.0413]
[1727728173340,6.3859,156.6,156.56,6.3872]
[1727728174645,6.3859,156.6,156.56,7.6645533]
[1727728174841,6.3853,156.61,156.56,7.6645533]
[1727728175021,6.3853,156.61,156.57,6.3868]
[1727728175643,6.3853,156.61,156.56,6.3872]
[1727728175644,0.97258691,156.6,156.56,6.3872]
[1727728177946,0.97258691,156.6,156.55,15.9689]
[1727728178134,6.3858,156.6,156.55,22.3562]
[1727728178441,6.3858,156.6,156.55,15.9689]
[1727728178645,6.3858,156.6,156.56,6.3873]
[1727728179464,0.97258691,156.63,156.55,15.9689]
[1727728179741,6.3864,156.59,156.55,22.3564]
[1727728179943,6.3869,156.57,156.53,6.3884]
[1727728180138,39.739484,156.62,156.52,15.9717]
[1727728180139,7.35988691,156.56,156.52,15.9717]
[1727728180325,6.3873,156.56,156.52,15.9717]
[1727728180951,6.3882,156.54,156.5,22.06]
[1727728181240,16.5154,156.59,156.5,22.06]
[1727728181241,0.97258691,156.58,156.5,22.06]
[1727728181439,6.3877,156.55,156.5,22.06]
[1727728181653,6.3877,156.55,156.51,6.3892]
[1727728183451,0.97258691,156.54,156.5,22.0599]
[1727728184137,0.97258691,156.54,156.49,15.9747]
[1727728184138,6.3888,156.53,156.49,15.9747]
[1727728184459,0.97258691,156.52,156.49,15.9747]
[1727728185152,6.3888,156.53,156.49,15.9747]
[1727728185324,6.3878,156.55,156.5,11.30377502]
[1727728185530,6.3878,156.55,156.51,6.3891]
[1727728188054,0.97258691,156.54,156.51,6.3891]
[1727728188828,6.3878,156.55,156.51,6.3891]
[1727728190252,0.97258691,156.54,156.51,6.3891]
[1727728194057,0.97258691,156.54,156.49,15.9747]
[1727728194349,6.389,156.52,156.48,6.3904]
[1727728194654,6.39,156.5,156.46,22.369]
[1727728194853,0.97258691,156.49,156.46,22.369]
[1727728195756,7.36278691,156.49,156.45,6.3917]
[1727728195932,7.36278691,156.49,156.43,54.2165]
[1727728195933,23.776884,156.51,156.43,54.2165]
[1727728196133,6.3902,156.49,156.45,6.3917]
[1727728196973,23.776884,156.51,156.43,38.2357]
[1727728197253,6.3894,156.51,156.47,6.3906]
[1727728199749,23.776884,156.52,156.47,15.977]
[1727728199933,6.3893,156.51,156.47,22.3679]
[1727728200957,7.36188691,156.51,156.47,22.3679]
[1727728201162,6.3893,156.51,156.47,22.3679]
[1727728202339,0.97258691,156.5,156.47,22.3679]
[1727728202535,7.36258691,156.5,156.46,6.3914]
[1727728203741,30.166084,156.52,156.46,15.9782]
[1727728203947,6.3892,156.52,156.47,1.27811954]
[1727728204156,15.6363,156.53,156.45,11.30377502]
[1727728204359,16.93938691,156.58,156.51,6.3892]
[1727728204360,15.6543,156.58,156.51,6.3892]
[1727728204964,6.3877,156.55,156.51,6.3892]
[1727728205165,0.97258691,156.54,156.51,6.3892]
[1727728205351,6.3877,156.55,156.51,6.3892]
[1727728206270,6.3873,156.56,156.52,6.3889]
[1727728207754,15.6543,156.58,156.49,11.30377502]
[1727728208064,7.21951043,156.62,156.49,11.30377502]
[1727728208065,32.2431,156.62,156.54,6.3878]
[1727728208270,6.3863,156.59,156.55,6.3877]
[1727728208843,6.3853,156.61,156.57,6.3869]
[1727728209049,16.2804,156.62,156.57,6.3869]
[1727728209050,22.6653,156.62,156.57,6.3869]
[1727728209249,0.97258691,156.61,156.56,27.27137502]
[1727728209450,0.97258691,156.61,156.57,6.3869]
[1727728209952,16.2804,156.62,156.56,15.9676]
[1727728210160,6.3857,156.6,156.56,22.3548]
[1727728211541,16.2804,156.62,156.57,6.3868]
[1727728211542,30.162184,156.61,156.57,6.3868]
[1727728212746,30.162184,156.61,156.56,15.9676]
[1727728212961,16.2804,156.62,156.57,1.27736987]
[1727728213269,22.6654,156.62,156.58,6.3864]
[1727728213664,0.97258691,156.61,156.58,6.3864]
[1727728214050,22.6654,156.62,156.58,6.3864]
[1727728215161,15.9594,156.65,156.58,6.3864]
[1727728215365,6.3845,156.63,156.58,6.3864]
[1727728216359,0.97258691,156.62,156.58,6.3864]
[1727728216566,7.35758691,156.62,156.58,6.3864]
[1727728216760,6.385,156.62,156.58,6.3864]
[1727728219497,0.97258691,156.61,156.58,6.3864]
[1727728220056,23.776884,156.64,156.57,1.27720797]
[1727728220259,6.3846,156.63,156.59,6.386]
[1727728222874,16.4997,156.66,156.57,12.58091718]
[1727728222875,6.3837,156.65,156.61,6.3852]
[1727728223173,6.3829,156.67,156.63,6.3843]
[1727728223375,15.7556,156.7,156.63,6.3843]
[1727728223376,6.3825,156.68,156.63,6.3843]
[1727728224259,6.3825,156.68,156.64,6.3837]
[1727728225481,15.7556,156.7,156.62,15.9619]
[1727728225482,7.35538691,156.67,156.62,15.9619]
[1727728225777,7.35538691,156.67,156.63,6.3844]
[1727728225982,6.3828,156.67,156.63,6.3844]
[1727728226772,0.97258691,156.66,156.62,15.9619]
[1727728226982,6.3832,156.66,156.62,22.3467]
[1727728227476,16.92808691,156.69,156.6,15.6212]
[1727728227675,24.74947091,156.68,156.59,15.9647]
[1727728229054,6.384,156.64,156.6,6.3856]
[1727728230358,6.3849,156.62,156.59,15.9647]
[1727728231581,7.35788691,156.61,156.56,21.7534]
[1727728231769,15.1403,156.64,156.52,22.8525]
[1727728231955,15.9659,156.59,156.49,15.9751]
[1727728232155,6.3874,156.56,156.51,6.3893]
[1727728232374,15.9659,156.59,156.49,15.9751]
[1727728232375,0.97258691,156.55,156.49,15.9751]
[1727728232679,0.97258691,156.55,156.51,6.3893]
[1727728232680,6.3878,156.55,156.51,6.3893]
[1727728232866,7.36038691,156.55,156.51,6.3893]
[1727728233873,6.3878,156.55,156.51,6.3893]
[1727728236870,16.418,156.58,156.51,6.3893]
[1727728237077,6.3873,156.56,156.51,6.3893]
[1727728237776,6.3873,156.56,156.52,6.3888]
[1727728239085,6.3873,156.56,156.49,15.9751]
[1727728239378,6.3873,156.56,156.51,6.3892]
[1727728239752,16.418,156.58,156.48,6.5852]
[1727728239978,23.776884,156.57,156.53,15.9707]
[1727728240278,6.3874,156.56,156.53,15.9707]